[Event "December 12 Early 2023"]
[Site "https://www.chess.com"]
[Date "2023.12.12"]
[Round "3"]
[White "Musalov, Ruslan"]
[Black "Bazyrtsyrenov, Kirill"]
[Result "0-1"]
[Board "84"]
[TimeControl "180+1"]
[WhiteFideId "4141490"]
[BlackFideId "24215872"]
[WhiteElo "2490"]
[BlackElo "2742"]
[WhiteTeam "RUS"]
[BlackTeam "RUS"]
[WhiteClock "0:00:08"]
[BlackClock "0:00:59"]

1. e4 {[%clk 0:03:00]}  c5 {[%clk 0:02:59]} 2. Nf3 {[%clk 0:03:00]}  Nc6 {[%clk 0:02:58]} 3. d4 {[%clk 0:03:00]}  cxd4 {[%clk 0:02:59]} 4. Nxd4 {[%clk 0:03:01]}  g6 {[%clk 0:02:58]} 5. Nc3 {[%clk 0:02:58]}  Bg7 {[%clk 0:02:58]} 6. Be3 {[%clk 0:02:58]}  Nf6 {[%clk 0:02:58]} 7. Bc4 {[%clk 0:02:59]}  O-O {[%clk 0:02:59]} 8. Bb3 {[%clk 0:02:59]}  Re8 {[%clk 0:02:58]} 9. f3 {[%clk 0:02:45]}  e6 {[%clk 0:02:57]} 10. Qd2 {[%clk 0:02:30]}  d5 {[%clk 0:02:56]} 11. O-O-O {[%clk 0:02:30]}  Nxd4 {[%clk 0:02:52]} 12. Bxd4 {[%clk 0:02:28]}  e5 {[%clk 0:02:53]} 13. Bf2 {[%clk 0:02:23]}  d4 {[%clk 0:02:52]} 14. Nd5 {[%clk 0:02:22]}  Nxd5 {[%clk 0:02:48]} 15. Bxd5 {[%clk 0:02:23]}  Be6 {[%clk 0:02:45]} 16. Bxe6 {[%clk 0:02:15]}  Rxe6 {[%clk 0:02:46]} 17. h4 {[%clk 0:01:57]}  Rc8 {[%clk 0:02:35]} 18. Kb1 {[%clk 0:01:48]}  Qe8 {[%clk 0:02:13]} 19. h5 {[%clk 0:01:44]}  Qb5 {[%clk 0:02:10]} 20. hxg6 {[%clk 0:01:40]}  hxg6 {[%clk 0:02:10]} 21. Qd3 {[%clk 0:01:37]}  Qa5 {[%clk 0:02:05]} 22. Be1 {[%clk 0:01:30]}  Qa4 {[%clk 0:01:59]} 23. Qb3 {[%clk 0:01:27]}  Qd7 {[%clk 0:01:59]} 24. Bd2 {[%clk 0:01:18]}  Rb6 {[%clk 0:01:58]} 25. Qd5 {[%clk 0:01:18]}  Qxd5 {[%clk 0:01:47]} 26. exd5 {[%clk 0:01:19]}  Rc5 {[%clk 0:01:47]} 27. Bh6 {[%clk 0:00:54]}  Rxd5 {[%clk 0:01:46]} 28. Bxg7 {[%clk 0:00:53]}  Kxg7 {[%clk 0:01:47]} 29. Rhe1 {[%clk 0:00:52]}  a5 {[%clk 0:01:37]} 30. g4 {[%clk 0:00:50]}  a4 {[%clk 0:01:36]} 31. b3 {[%clk 0:00:49]}  a3 {[%clk 0:01:31]} 32. f4 {[%clk 0:00:45]}  exf4 {[%clk 0:01:27]} 33. Re4 {[%clk 0:00:38]}  g5 {[%clk 0:01:27]} 34. c4 {[%clk 0:00:35]}  Rd7 {[%clk 0:01:20]} 35. Re5 {[%clk 0:00:20]}  f6 {[%clk 0:01:19]} 36. Rd5 {[%clk 0:00:19]}  Rbd6 {[%clk 0:01:00]} 37. R1xd4 {[%clk 0:00:18]}  Rxd5 {[%clk 0:01:00]} 38. cxd5 {[%clk 0:00:18]}  f3 {[%clk 0:01:00]} 39. Kc2 {[%clk 0:00:17]}  f2 {[%clk 0:01:00]} 40. Rd1 {[%clk 0:00:13]}  Rxd5 {[%clk 0:01:01]} 41. Rf1 {[%clk 0:00:13]}  Rd4 {[%clk 0:01:01]} 42. Rxf2 {[%clk 0:00:13]}  Rxg4 {[%clk 0:01:01]} 43. Rd2 {[%clk 0:00:08]}  b5 {[%clk 0:00:59]} 0-1

[Event "December 12 Early 2023"]
[Site "https://www.chess.com"]
[Date "2023.12.12"]
[Round "3"]
[White "Harshavardhan G B"]
[Black "Tabuenca Mendataurigoitia, Daniel"]
[Result "1/2-1/2"]
[Board "85"]
[TimeControl "180+1"]
[WhiteFideId "25059009"]
[BlackFideId "24563617"]
[WhiteElo "2735"]
[BlackElo "2485"]
[WhiteTeam "IND"]
[BlackTeam "ESP"]
[WhiteClock "0:00:09"]
[BlackClock "0:00:04"]

1. e4 {[%clk 0:03:00]}  Nc6 {[%clk 0:02:59]} 2. Nf3 {[%clk 0:03:00]}  d6 {[%clk 0:02:59]} 3. d4 {[%clk 0:03:00]}  Nf6 {[%clk 0:02:59]} 4. Nc3 {[%clk 0:03:00]}  g6 {[%clk 0:03:00]} 5. h3 {[%clk 0:02:59]}  Bg7 {[%clk 0:03:00]} 6. Bc4 {[%clk 0:02:58]}  O-O {[%clk 0:03:00]} 7. Qe2 {[%clk 0:02:58]}  e5 {[%clk 0:02:57]} 8. dxe5 {[%clk 0:02:57]}  Nxe5 {[%clk 0:02:57]} 9. Nxe5 {[%clk 0:02:56]}  dxe5 {[%clk 0:02:58]} 10. Be3 {[%clk 0:02:55]}  c6 {[%clk 0:02:57]} 11. a4 {[%clk 0:02:54]}  a5 {[%clk 0:02:50]} 12. O-O {[%clk 0:02:53]}  Qc7 {[%clk 0:02:44]} 13. Rad1 {[%clk 0:02:51]}  Nd7 {[%clk 0:02:39]} 14. Rd2 {[%clk 0:02:48]}  Nb6 {[%clk 0:02:39]} 15. Bb3 {[%clk 0:02:47]}  Be6 {[%clk 0:02:33]} 16. Bxe6 {[%clk 0:02:45]}  fxe6 {[%clk 0:02:34]} 17. Rfd1 {[%clk 0:02:45]}  Rfd8 {[%clk 0:02:33]} 18. b3 {[%clk 0:02:44]}  Rxd2 {[%clk 0:02:31]} 19. Qxd2 {[%clk 0:02:45]}  Bf8 {[%clk 0:02:27]} 20. Qd3 {[%clk 0:02:38]}  Be7 {[%clk 0:02:17]} 21. Bxb6 {[%clk 0:02:38]}  Qxb6 {[%clk 0:02:17]} 22. Qd7 {[%clk 0:02:38]}  Kf7 {[%clk 0:02:17]} 23. Qd3 {[%clk 0:02:37]}  Rd8 {[%clk 0:02:15]} 24. Qf3+ {[%clk 0:02:36]}  Kg8 {[%clk 0:02:15]} 25. Rxd8+ {[%clk 0:02:35]}  Qxd8 {[%clk 0:02:16]} 26. Kh2 {[%clk 0:02:35]}  Qd2 {[%clk 0:02:08]} 27. Ne2 {[%clk 0:02:17]}  Qxc2 {[%clk 0:02:02]} 28. Ng1 {[%clk 0:02:16]}  b5 {[%clk 0:01:57]} 29. Qg3 {[%clk 0:02:06]}  Qxe4 {[%clk 0:01:50]} 30. axb5 {[%clk 0:02:01]}  cxb5 {[%clk 0:01:51]} 31. Qc3 {[%clk 0:02:01]}  Qf4+ {[%clk 0:01:46]} 32. Kh1 {[%clk 0:02:00]}  a4 {[%clk 0:01:41]} 33. bxa4 {[%clk 0:01:58]}  bxa4 {[%clk 0:01:42]} 34. Nf3 {[%clk 0:01:58]}  Bf6 {[%clk 0:01:37]} 35. Qc8+ {[%clk 0:01:58]}  Kg7 {[%clk 0:01:36]} 36. Qd7+ {[%clk 0:01:54]}  Kh6 {[%clk 0:01:35]} 37. Qxe6 {[%clk 0:01:41]}  e4 {[%clk 0:01:25]} 38. Ng1 {[%clk 0:01:30]}  Qf5 {[%clk 0:01:14]} 39. Qa2 {[%clk 0:01:17]}  a3 {[%clk 0:01:06]} 40. Qxa3 {[%clk 0:01:05]}  Qxf2 {[%clk 0:01:05]} 41. Qf8+ {[%clk 0:01:05]}  Kg5 {[%clk 0:01:01]} 42. h4+ {[%clk 0:00:52]}  Kg4 {[%clk 0:00:56]} 43. Qc8+ {[%clk 0:00:42]}  Kh5 {[%clk 0:00:48]} 44. Qc7 {[%clk 0:00:20]}  h6 {[%clk 0:00:43]} 45. Qc6 {[%clk 0:00:14]}  Qf5 {[%clk 0:00:37]} 46. Qc2 {[%clk 0:00:12]}  Bxh4 {[%clk 0:00:36]} 47. Qe2+ {[%clk 0:00:12]}  Qg4 {[%clk 0:00:36]} 48. Qb5+ {[%clk 0:00:13]}  Bg5 {[%clk 0:00:36]} 49. Nh3 {[%clk 0:00:13]}  e3 {[%clk 0:00:36]} 50. Qe5 {[%clk 0:00:12]}  e2 {[%clk 0:00:24]} 51. Kh2 {[%clk 0:00:12]}  e1=Q {[%clk 0:00:06]} 52. Qxe1 {[%clk 0:00:12]}  Bf4+ {[%clk 0:00:07]} 53. Kh1 {[%clk 0:00:13]}  Bg3 {[%clk 0:00:07]} 54. Qa5+ {[%clk 0:00:12]}  g5 {[%clk 0:00:06]} 55. Qd5 {[%clk 0:00:12]}  Qe2 {[%clk 0:00:05]} 56. Qf7+ {[%clk 0:00:12]}  Kg4 {[%clk 0:00:06]} 57. Qd7+ {[%clk 0:00:12]}  Kh5 {[%clk 0:00:06]} 58. Ng1 {[%clk 0:00:12]}  Qe4 {[%clk 0:00:05]} 59. Qd1+ {[%clk 0:00:09]}  Qg4 {[%clk 0:00:03]} 60. Qc2 {[%clk 0:00:09]}  Qh4+ {[%clk 0:00:02]} 61. Nh3 {[%clk 0:00:09]}  Qd4 {[%clk 0:00:02]} 62. Qf5 {[%clk 0:00:08]}  Qa1+ {[%clk 0:00:01]} 63. Ng1 {[%clk 0:00:08]}  Qd1 {[%clk 0:00:01]} 64. Qf7+ {[%clk 0:00:08]}  Kg4 {[%clk 0:00:01]} 65. Qe6+ {[%clk 0:00:09]}  Kh5 {[%clk 0:00:02]} 66. Qh3+ {[%clk 0:00:09]}  Kg6 {[%clk 0:00:02]} 67. Qxg3 {[%clk 0:00:09]}  Qh5+ {[%clk 0:00:02]} 68. Nh3 {[%clk 0:00:09]}  Qd1+ {[%clk 0:00:02]} 69. Kh2 {[%clk 0:00:10]}  Qd5 {[%clk 0:00:02]} 70. Qe3 {[%clk 0:00:10]}  Qf5 {[%clk 0:00:02]} 71. Kg1 {[%clk 0:00:10]}  Kh5 {[%clk 0:00:01]} 72. Qe2+ {[%clk 0:00:10]}  Kg6 {[%clk 0:00:02]} 73. Nf2 {[%clk 0:00:11]}  Qc5 {[%clk 0:00:02]} 74. Qe4+ {[%clk 0:00:10]}  Kg7 {[%clk 0:00:02]} 75. Qf3 {[%clk 0:00:11]}  Qc1+ {[%clk 0:00:01]} 76. Kh2 {[%clk 0:00:11]}  Qc7+ {[%clk 0:00:02]} 77. g3 {[%clk 0:00:11]}  Qc2 {[%clk 0:00:01]} 78. Kg2 {[%clk 0:00:11]}  Kg6 {[%clk 0:00:01]} 79. Qe4+ {[%clk 0:00:12]}  Qxe4+ {[%clk 0:00:02]} 80. Nxe4 {[%clk 0:00:13]}  Kf5 {[%clk 0:00:03]} 81. Kf3 {[%clk 0:00:13]}  h5 {[%clk 0:00:03]} 82. Nd6+ {[%clk 0:00:11]}  Kg6 {[%clk 0:00:01]} 83. Nc4 {[%clk 0:00:11]}  Kf5 {[%clk 0:00:02]} 84. Ne3+ {[%clk 0:00:11]}  Ke5 {[%clk 0:00:02]} 85. Ng2 {[%clk 0:00:11]}  Kf5 {[%clk 0:00:01]} 86. Ne3+ {[%clk 0:00:11]}  Ke5 {[%clk 0:00:02]} 87. Kf2 {[%clk 0:00:11]}  Ke4 {[%clk 0:00:02]} 88. Ke2 {[%clk 0:00:12]}  Ke5 {[%clk 0:00:01]} 89. Kf3 {[%clk 0:00:12]}  Ke6 {[%clk 0:00:02]} 90. Ng2 {[%clk 0:00:10]}  Ke5 {[%clk 0:00:02]} 91. Ne1 {[%clk 0:00:10]}  Kf5 {[%clk 0:00:01]} 92. Nd3 {[%clk 0:00:10]}  g4+ {[%clk 0:00:01]} 93. Ke3 {[%clk 0:00:09]}  Kg5 {[%clk 0:00:02]} 94. Nc5 {[%clk 0:00:06]}  h4 {[%clk 0:00:02]} 95. Ne6+ {[%clk 0:00:06]}  Kh5 {[%clk 0:00:02]} 96. Nf4+ {[%clk 0:00:06]}  Kg5 {[%clk 0:00:02]} 97. gxh4+ {[%clk 0:00:05]}  Kxh4 {[%clk 0:00:03]} 98. Kf2 {[%clk 0:00:06]}  g3+ {[%clk 0:00:03]} 99. Kg2 {[%clk 0:00:07]}  Kg4 {[%clk 0:00:04]} 100. Ne2 {[%clk 0:00:08]}  Kg5 {[%clk 0:00:04]} 101. Nxg3 {[%clk 0:00:09]} 1/2-1/2

[Event "December 12 Early 2023"]
[Site "https://www.chess.com"]
[Date "2023.12.12"]
[Round "3"]
[White "Aaditya Dhingra"]
[Black "Iljin, Timofey"]
[Result "0-1"]
[Board "87"]
[TimeControl "180+1"]
[WhiteFideId "25678191"]
[BlackFideId "14110180"]
[WhiteElo "2690"]
[BlackElo "2484"]
[WhiteTeam "IND"]
[BlackTeam "UKR"]
[WhiteClock "0:00:00"]
[BlackClock "0:00:03"]

1. c4 {[%clk 0:03:00]}  f5 {[%clk 0:02:59]} 2. Nc3 {[%clk 0:02:59]}  Nf6 {[%clk 0:02:58]} 3. d4 {[%clk 0:03:00]}  g6 {[%clk 0:02:59]} 4. g3 {[%clk 0:03:00]}  Bg7 {[%clk 0:02:59]} 5. Bg2 {[%clk 0:03:01]}  O-O {[%clk 0:02:59]} 6. Nf3 {[%clk 0:03:01]}  d6 {[%clk 0:03:00]} 7. d5 {[%clk 0:03:00]}  Qe8 {[%clk 0:03:01]} 8. O-O {[%clk 0:03:00]}  Na6 {[%clk 0:03:01]} 9. Rb1 {[%clk 0:02:59]}  Nc5 {[%clk 0:02:57]} 10. Nd4 {[%clk 0:02:57]}  a5 {[%clk 0:02:56]} 11. b3 {[%clk 0:02:53]}  Bd7 {[%clk 0:02:55]} 12. Bb2 {[%clk 0:02:49]}  c6 {[%clk 0:02:56]} 13. a3 {[%clk 0:02:43]}  cxd5 {[%clk 0:02:52]} 14. cxd5 {[%clk 0:02:32]}  b5 {[%clk 0:02:52]} 15. Nc6 {[%clk 0:02:13]}  b4 {[%clk 0:02:06]} 16. axb4 {[%clk 0:02:12]}  axb4 {[%clk 0:02:07]} 17. Nb5 {[%clk 0:01:59]}  Rc8 {[%clk 0:02:04]} 18. Nbd4 {[%clk 0:01:51]}  e5 {[%clk 0:01:46]} 19. Nb5 {[%clk 0:01:26]}  Nb7 {[%clk 0:00:58]} 20. Rc1 {[%clk 0:01:16]}  Kh8 {[%clk 0:00:51]} 21. Ra1 {[%clk 0:01:02]}  Ne4 {[%clk 0:00:43]} 22. Ra7 {[%clk 0:00:52]}  Bxc6 {[%clk 0:00:33]} 23. dxc6 {[%clk 0:00:52]}  Qxc6 {[%clk 0:00:34]} 24. Rxb7 {[%clk 0:00:52]}  Qxb7 {[%clk 0:00:32]} 25. Nxd6 {[%clk 0:00:51]}  Qe7 {[%clk 0:00:19]} 26. Nxc8 {[%clk 0:00:48]}  Rxc8 {[%clk 0:00:18]} 27. Bxe4 {[%clk 0:00:46]}  fxe4 {[%clk 0:00:19]} 28. Qd5 {[%clk 0:00:45]}  e3 {[%clk 0:00:18]} 29. fxe3 {[%clk 0:00:44]}  Qa7 {[%clk 0:00:17]} 30. Qe4 {[%clk 0:00:39]}  Re8 {[%clk 0:00:10]} 31. Kg2 {[%clk 0:00:32]}  Qc5 {[%clk 0:00:09]} 32. Rc1 {[%clk 0:00:31]}  Qb5 {[%clk 0:00:09]} 33. Qc4 {[%clk 0:00:28]}  Qb7+ {[%clk 0:00:09]} 34. Qc6 {[%clk 0:00:28]}  Qf7 {[%clk 0:00:09]} 35. Rf1 {[%clk 0:00:26]}  Qg8 {[%clk 0:00:09]} 36. e4 {[%clk 0:00:24]}  Rc8 {[%clk 0:00:08]} 37. Qd5 {[%clk 0:00:24]}  Qe8 {[%clk 0:00:05]} 38. Rd1 {[%clk 0:00:19]}  Rc2 {[%clk 0:00:05]} 39. Qd8 {[%clk 0:00:16]}  Qg8 {[%clk 0:00:05]} 40. Rd2 {[%clk 0:00:08]}  Rxd2 {[%clk 0:00:03]} 41. Qxd2 {[%clk 0:00:09]}  h5 {[%clk 0:00:03]} 42. Qd3 {[%clk 0:00:09]}  Qe6 {[%clk 0:00:03]} 43. h3 {[%clk 0:00:09]}  Kh7 {[%clk 0:00:04]} 44. Qd5 {[%clk 0:00:09]}  Qa6 {[%clk 0:00:03]} 45. Qc4 {[%clk 0:00:08]}  Qb7 {[%clk 0:00:04]} 46. Qd5 {[%clk 0:00:08]}  Qa6 {[%clk 0:00:03]} 47. Kf3 {[%clk 0:00:06]}  Qa2 {[%clk 0:00:03]} 48. Bxe5 {[%clk 0:00:06]}  Bxe5 {[%clk 0:00:01]} 49. Qxe5 {[%clk 0:00:07]}  Qxb3+ {[%clk 0:00:02]} 50. Kg2 {[%clk 0:00:06]}  Qf7 {[%clk 0:00:02]} 51. Qd4 {[%clk 0:00:04]}  b3 {[%clk 0:00:03]} 52. Kh2 {[%clk 0:00:00]}  Qb7 {[%clk 0:00:03]} 0-1

[Event "December 12 Early 2023"]
[Site "https://www.chess.com"]
[Date "2023.12.12"]
[Round "3"]
[White "KacperKacprzak"]
[Black "Berezin, Viktor"]
[Result "0-1"]
[Board "88"]
[TimeControl "180+1"]
[BlackFideId "14107872"]
[WhiteElo "2689"]
[BlackElo "2480"]
[BlackTeam "UKR"]
[WhiteClock "0:00:03"]
[BlackClock "0:00:14"]

1. c4 {[%clk 0:03:00]}  Nf6 {[%clk 0:02:59]} 2. Nc3 {[%clk 0:02:59]}  g6 {[%clk 0:03:00]} 3. g3 {[%clk 0:02:56]}  Bg7 {[%clk 0:03:00]} 4. Bg2 {[%clk 0:02:57]}  O-O {[%clk 0:03:01]} 5. d4 {[%clk 0:02:55]}  d6 {[%clk 0:03:01]} 6. e3 {[%clk 0:02:55]}  Nc6 {[%clk 0:03:02]} 7. Nge2 {[%clk 0:02:55]}  a6 {[%clk 0:03:02]} 8. O-O {[%clk 0:02:56]}  Rb8 {[%clk 0:03:03]} 9. b3 {[%clk 0:02:52]}  e5 {[%clk 0:03:03]} 10. Bb2 {[%clk 0:02:51]}  Bd7 {[%clk 0:03:01]} 11. Rc1 {[%clk 0:02:45]}  Re8 {[%clk 0:02:55]} 12. Nd5 {[%clk 0:02:44]}  exd4 {[%clk 0:02:52]} 13. Nxd4 {[%clk 0:02:43]}  Ne5 {[%clk 0:02:49]} 14. h3 {[%clk 0:02:37]}  c6 {[%clk 0:02:37]} 15. Nxf6+ {[%clk 0:02:34]}  Bxf6 {[%clk 0:02:38]} 16. f4 {[%clk 0:02:28]}  c5 {[%clk 0:02:29]} 17. fxe5 {[%clk 0:02:22]}  Bxe5 {[%clk 0:02:28]} 18. Qf3 {[%clk 0:02:12]}  Rf8 {[%clk 0:02:28]} 19. Qf2 {[%clk 0:02:07]}  cxd4 {[%clk 0:02:21]} 20. exd4 {[%clk 0:02:08]}  Bg7 {[%clk 0:02:20]} 21. Rce1 {[%clk 0:02:07]}  b5 {[%clk 0:02:19]} 22. c5 {[%clk 0:02:06]}  Bf5 {[%clk 0:02:07]} 23. Rc1 {[%clk 0:01:47]}  dxc5 {[%clk 0:02:00]} 24. dxc5 {[%clk 0:01:48]}  Bxb2 {[%clk 0:01:58]} 25. Qxb2 {[%clk 0:01:49]}  Qc7 {[%clk 0:01:54]} 26. g4 {[%clk 0:01:48]}  Be6 {[%clk 0:01:53]} 27. c6 {[%clk 0:01:48]}  Rbd8 {[%clk 0:01:51]} 28. Qf2 {[%clk 0:01:31]}  Rd6 {[%clk 0:01:43]} 29. Rfd1 {[%clk 0:01:30]}  Rfd8 {[%clk 0:01:43]} 30. Rxd6 {[%clk 0:01:29]}  Rxd6 {[%clk 0:01:43]} 31. Qc5 {[%clk 0:01:29]}  Rd2 {[%clk 0:01:40]} 32. Qe3 {[%clk 0:01:12]}  Rxa2 {[%clk 0:01:39]} 33. Rd1 {[%clk 0:01:04]}  a5 {[%clk 0:01:34]} 34. Qd4 {[%clk 0:00:48]}  Qg3 {[%clk 0:01:17]} 35. Qe4 {[%clk 0:00:47]}  Kg7 {[%clk 0:01:02]} 36. Qd4+ {[%clk 0:00:41]}  Kh6 {[%clk 0:00:55]} 37. Qe4 {[%clk 0:00:40]}  a4 {[%clk 0:00:51]} 38. bxa4 {[%clk 0:00:39]}  bxa4 {[%clk 0:00:52]} 39. g5+ {[%clk 0:00:35]}  Qxg5 {[%clk 0:00:48]} 40. Kh1 {[%clk 0:00:25]}  Qg3 {[%clk 0:00:42]} 41. Qf3 {[%clk 0:00:17]}  Qxf3 {[%clk 0:00:33]} 42. Bxf3 {[%clk 0:00:18]}  Rc2 {[%clk 0:00:34]} 43. Be4 {[%clk 0:00:18]}  Rc3 {[%clk 0:00:30]} 44. h4 {[%clk 0:00:18]}  a3 {[%clk 0:00:29]} 45. Ra1 {[%clk 0:00:17]}  a2 {[%clk 0:00:28]} 46. Kg2 {[%clk 0:00:17]}  f5 {[%clk 0:00:26]} 47. Bf3 {[%clk 0:00:17]}  g5 {[%clk 0:00:19]} 48. hxg5+ {[%clk 0:00:16]}  Kxg5 {[%clk 0:00:20]} 49. Kf2 {[%clk 0:00:17]}  Kf4 {[%clk 0:00:20]} 50. Bg2 {[%clk 0:00:15]}  Rc2+ {[%clk 0:00:21]} 51. Kg1 {[%clk 0:00:15]}  Kg3 {[%clk 0:00:21]} 52. Bf1 {[%clk 0:00:12]}  f4 {[%clk 0:00:22]} 53. Re1 {[%clk 0:00:11]}  f3 {[%clk 0:00:16]} 54. Rd1 {[%clk 0:00:08]}  Bg4 {[%clk 0:00:13]} 55. Ra1 {[%clk 0:00:03]}  f2+ {[%clk 0:00:14]} 56. Kh1 {[%clk 0:00:03]}  Bf3+ {[%clk 0:00:14]} 0-1

[Event "December 12 Early 2023"]
[Site "https://www.chess.com"]
[Date "2023.12.12"]
[Round "3"]
[White "Tokhirjonova, Gulrukhbegim"]
[Black "Dann, Matthias"]
[Result "1-0"]
[Board "89"]
[TimeControl "180+1"]
[WhiteFideId "14203626"]
[BlackFideId "24638056"]
[WhiteElo "2665"]
[BlackElo "2479"]
[WhiteTeam "USA"]
[BlackTeam "GER"]
[WhiteClock "0:00:13"]
[BlackClock "0:00:00"]

1. Nf3 {[%clk 0:03:00]}  Nf6 {[%clk 0:02:55]} 2. d4 {[%clk 0:03:00]}  d5 {[%clk 0:02:52]} 3. g3 {[%clk 0:02:55]}  Bf5 {[%clk 0:02:52]} 4. Bg2 {[%clk 0:02:55]}  e6 {[%clk 0:02:52]} 5. O-O {[%clk 0:02:55]}  Be7 {[%clk 0:02:51]} 6. c4 {[%clk 0:02:56]}  c6 {[%clk 0:02:48]} 7. Nc3 {[%clk 0:02:55]}  h6 {[%clk 0:02:46]} 8. b3 {[%clk 0:02:56]}  O-O {[%clk 0:02:45]} 9. Bb2 {[%clk 0:02:56]}  Nbd7 {[%clk 0:02:45]} 10. Re1 {[%clk 0:02:56]}  Qb8 {[%clk 0:02:33]} 11. Nh4 {[%clk 0:02:49]}  Bh7 {[%clk 0:02:32]} 12. f4 {[%clk 0:02:44]}  b5 {[%clk 0:02:29]} 13. c5 {[%clk 0:02:18]}  b4 {[%clk 0:02:20]} 14. Nb1 {[%clk 0:02:17]}  Ne4 {[%clk 0:02:16]} 15. Nf3 {[%clk 0:02:17]}  a5 {[%clk 0:02:16]} 16. Nbd2 {[%clk 0:02:14]}  Ndf6 {[%clk 0:02:15]} 17. Ne5 {[%clk 0:02:13]}  Qb5 {[%clk 0:02:14]} 18. e3 {[%clk 0:01:50]}  Rfb8 {[%clk 0:02:01]} 19. Bf1 {[%clk 0:01:37]}  Qb7 {[%clk 0:02:01]} 20. Kg2 {[%clk 0:01:35]}  a4 {[%clk 0:01:53]} 21. bxa4 {[%clk 0:01:28]}  Nxd2 {[%clk 0:01:51]} 22. Qxd2 {[%clk 0:01:29]}  Rxa4 {[%clk 0:01:49]} 23. Bd3 {[%clk 0:01:20]}  Be4+ {[%clk 0:01:38]} 24. Kg1 {[%clk 0:01:17]}  Rba8 {[%clk 0:01:36]} 25. Bc1 {[%clk 0:00:51]}  Bxd3 {[%clk 0:01:24]} 26. Nxd3 {[%clk 0:00:50]}  Ne4 {[%clk 0:01:23]} 27. Qb2 {[%clk 0:00:36]}  b3 {[%clk 0:01:16]} 28. a3 {[%clk 0:00:32]}  Qb5 {[%clk 0:01:02]} 29. Rd1 {[%clk 0:00:30]}  Rc4 {[%clk 0:00:59]} 30. Nb4 {[%clk 0:00:18]}  Rxb4 {[%clk 0:00:33]} 31. axb4 {[%clk 0:00:17]}  Rxa1 {[%clk 0:00:34]} 32. Qxa1 {[%clk 0:00:18]}  Qe2 {[%clk 0:00:34]} 33. Rf1 {[%clk 0:00:15]}  Nd2 {[%clk 0:00:05]} 34. Bxd2 {[%clk 0:00:14]}  Qxd2 {[%clk 0:00:06]} 35. Qe1 {[%clk 0:00:13]}  Qa2 {[%clk 0:00:02]} 36. b5 {[%clk 0:00:13]}  cxb5 {[%clk 0:00:01]} 37. c6 {[%clk 0:00:13]}  Bd8 {[%clk 0:00:00]} 38. Qc3 {[%clk 0:00:13]} 1-0

[Event "December 12 Early 2023"]
[Site "https://www.chess.com"]
[Date "2023.12.12"]
[Round "3"]
[White "Mestnikov, Aisen"]
[Black "Leiva, Gianmarco"]
[Result "0-1"]
[Board "90"]
[TimeControl "180+1"]
[WhiteFideId "34130117"]
[BlackFideId "3804399"]
[WhiteElo "2478"]
[BlackElo "2662"]
[WhiteTeam "RUS"]
[BlackTeam "PER"]
[WhiteClock "0:00:14"]
[BlackClock "0:00:08"]

1. d4 {[%clk 0:03:00]}  Nf6 {[%clk 0:02:44]} 2. c4 {[%clk 0:03:00]}  e6 {[%clk 0:02:44]} 3. Nf3 {[%clk 0:03:00]}  b6 {[%clk 0:02:34]} 4. g3 {[%clk 0:02:59]}  Bb4+ {[%clk 0:02:33]} 5. Bd2 {[%clk 0:02:59]}  a5 {[%clk 0:02:31]} 6. Bg2 {[%clk 0:02:59]}  Bb7 {[%clk 0:02:31]} 7. O-O {[%clk 0:02:58]}  O-O {[%clk 0:02:30]} 8. Bf4 {[%clk 0:02:57]}  Re8 {[%clk 0:02:29]} 9. Ne5 {[%clk 0:02:42]}  Bxg2 {[%clk 0:02:28]} 10. Kxg2 {[%clk 0:02:42]}  Bf8 {[%clk 0:02:18]} 11. Qc2 {[%clk 0:02:39]}  d6 {[%clk 0:02:09]} 12. Nf3 {[%clk 0:02:34]}  Nc6 {[%clk 0:02:06]} 13. Rd1 {[%clk 0:02:33]}  Qe7 {[%clk 0:02:06]} 14. Nc3 {[%clk 0:02:19]}  e5 {[%clk 0:02:05]} 15. dxe5 {[%clk 0:02:19]}  dxe5 {[%clk 0:02:05]} 16. Bg5 {[%clk 0:02:19]}  e4 {[%clk 0:01:52]} 17. Nd4 {[%clk 0:02:07]}  Nb4 {[%clk 0:01:39]} 18. Qb3 {[%clk 0:02:00]}  h6 {[%clk 0:01:38]} 19. Bf4 {[%clk 0:01:30]}  Nd7 {[%clk 0:01:10]} 20. Ncb5 {[%clk 0:01:14]}  Nc5 {[%clk 0:01:02]} 21. Qc3 {[%clk 0:01:11]}  Rac8 {[%clk 0:00:59]} 22. a3 {[%clk 0:01:00]}  Na4 {[%clk 0:00:53]} 23. Qb3 {[%clk 0:00:57]}  Nc5 {[%clk 0:00:54]} 24. Qe3 {[%clk 0:00:53]}  Nba6 {[%clk 0:00:53]} 25. Na7 {[%clk 0:00:45]}  g5 {[%clk 0:00:48]} 26. Nxc8 {[%clk 0:00:36]}  Rxc8 {[%clk 0:00:48]} 27. Nc6 {[%clk 0:00:32]}  Qf6 {[%clk 0:00:38]} 28. Be5 {[%clk 0:00:20]}  Qxc6 {[%clk 0:00:36]} 29. Bc3 {[%clk 0:00:20]}  Ne6 {[%clk 0:00:30]} 30. Kg1 {[%clk 0:00:12]}  Nac5 {[%clk 0:00:23]} 31. Rab1 {[%clk 0:00:04]}  Nb3 {[%clk 0:00:19]} 32. Bf6 {[%clk 0:00:03]}  Qxc4 {[%clk 0:00:17]} 33. Qc3 {[%clk 0:00:02]}  Qxc3 {[%clk 0:00:17]} 34. Bxc3 {[%clk 0:00:03]}  Nec5 {[%clk 0:00:15]} 35. Rd5 {[%clk 0:00:03]}  Bg7 {[%clk 0:00:14]} 36. Bxg7 {[%clk 0:00:02]}  Kxg7 {[%clk 0:00:15]} 37. Rbd1 {[%clk 0:00:03]}  Kf6 {[%clk 0:00:13]} 38. Rd8 {[%clk 0:00:04]}  Rxd8 {[%clk 0:00:14]} 39. Rxd8 {[%clk 0:00:04]}  Na4 {[%clk 0:00:13]} 40. Rc8 {[%clk 0:00:04]}  c5 {[%clk 0:00:13]} 41. Rc6+ {[%clk 0:00:02]}  Ke5 {[%clk 0:00:13]} 42. Rxh6 {[%clk 0:00:01]}  f6 {[%clk 0:00:13]} 43. Rh8 {[%clk 0:00:01]}  Nxb2 {[%clk 0:00:13]} 44. Rb8 {[%clk 0:00:02]}  Na4 {[%clk 0:00:10]} 45. h4 {[%clk 0:00:03]}  gxh4 {[%clk 0:00:10]} 46. gxh4 {[%clk 0:00:04]}  Kf5 {[%clk 0:00:11]} 47. Kg2 {[%clk 0:00:03]}  c4 {[%clk 0:00:11]} 48. Kg3 {[%clk 0:00:03]}  c3 {[%clk 0:00:11]} 49. Rd8 {[%clk 0:00:03]}  c2 {[%clk 0:00:11]} 50. Rc8 {[%clk 0:00:02]}  Nbc5 {[%clk 0:00:09]} 51. Rh8 {[%clk 0:00:02]}  c1=Q {[%clk 0:00:09]} 52. Rh5+ {[%clk 0:00:03]}  Kg6 {[%clk 0:00:09]} 53. Rd5 {[%clk 0:00:03]}  Qg1+ {[%clk 0:00:08]} 54. Kh3 {[%clk 0:00:04]}  e3 {[%clk 0:00:07]} 55. h5+ {[%clk 0:00:05]}  Kh6 {[%clk 0:00:07]} 56. f3 {[%clk 0:00:06]}  Ne6 {[%clk 0:00:06]} 57. Rf5 {[%clk 0:00:05]}  Ng5+ {[%clk 0:00:06]} 58. Kh4 {[%clk 0:00:06]}  Qh2+ {[%clk 0:00:05]} 59. Kg4 {[%clk 0:00:06]}  Qxh5+ {[%clk 0:00:04]} 60. Kf4 {[%clk 0:00:06]}  Qh4+ {[%clk 0:00:03]} 61. Kxe3 {[%clk 0:00:07]}  Qc4 {[%clk 0:00:03]} 62. Rxf6+ {[%clk 0:00:07]}  Kg7 {[%clk 0:00:03]} 63. Rf4 {[%clk 0:00:08]}  Qc3+ {[%clk 0:00:03]} 64. Kf2 {[%clk 0:00:08]}  Nc5 {[%clk 0:00:04]} 65. Rg4 {[%clk 0:00:09]}  Ne6 {[%clk 0:00:04]} 66. f4 {[%clk 0:00:09]}  Qc5+ {[%clk 0:00:05]} 67. e3 {[%clk 0:00:10]}  Qf5 {[%clk 0:00:05]} 68. Kg3 {[%clk 0:00:10]}  Qxg4+ {[%clk 0:00:06]} 69. Kxg4 {[%clk 0:00:10]}  Nf7 {[%clk 0:00:06]} 70. Kf5 {[%clk 0:00:10]}  Nc5 {[%clk 0:00:07]} 71. e4 {[%clk 0:00:10]}  b5 {[%clk 0:00:08]} 72. e5 {[%clk 0:00:11]}  b4 {[%clk 0:00:08]} 73. axb4 {[%clk 0:00:11]}  axb4 {[%clk 0:00:09]} 74. e6 {[%clk 0:00:12]}  b3 {[%clk 0:00:09]} 75. e7 {[%clk 0:00:12]}  b2 {[%clk 0:00:10]} 76. Kg4 {[%clk 0:00:13]}  Nd6 {[%clk 0:00:09]} 77. f5 {[%clk 0:00:12]}  b1=Q {[%clk 0:00:09]} 78. Kg5 {[%clk 0:00:12]}  Qxf5+ {[%clk 0:00:08]} 79. Kh4 {[%clk 0:00:12]}  Qg6 {[%clk 0:00:08]} 80. e8=Q {[%clk 0:00:13]}  Nf5+ {[%clk 0:00:07]} 81. Kh3 {[%clk 0:00:14]}  Qg3# {[%clk 0:00:08]} 0-1